bitfinex-derivatives/quotes_ETHF0:USTF0_20250503
["timestamp","ask_amount","ask_price","bid_price","bid_amount"]
[1746287008944,1.6073,1836.6,1836.5,2.7156]
[1746287009144,2.03258562,1836.6,1836.5,2.7156]
[1746287009648,3.12127562,1836.6,1836.5,2.7156]
[1746287009943,3.12127562,1836.6,1836.5,1.0887]
[1746287010144,3.12127562,1836.6,1836.5,4.8067]
[1746287010659,2.03258562,1836.6,1836.5,4.8067]
[1746287010841,2.03258562,1836.6,1836.5,6.5088]
[1746287012448,3.12127562,1836.6,1836.5,6.5088]
[1746287014154,3.12127562,1836.6,1836.5,4.8067]
[1746287016054,2.03258562,1836.6,1836.5,4.8067]
[1746287017149,2.03258562,1836.6,1836.5,5.6055]
[1746287017348,2.03258562,1836.6,1836.5,7.1952]
[1746287018147,2.03258562,1836.6,1836.5,3.4772]
[1746287021156,2.03258562,1836.6,1836.5,7.1952]
[1746287022157,2.03258562,1836.6,1836.5,3.4772]
[1746287023156,2.03258562,1836.6,1836.5,7.1952]
[1746287025160,2.03258562,1836.6,1836.5,3.4772]
[1746287027761,3.12127562,1836.6,1836.5,3.4772]
[1746287027960,2.03258562,1836.6,1836.5,3.4772]
[1746287028162,2.03258562,1836.6,1836.5,7.1952]
[1746287031465,3.12127562,1836.6,1836.5,7.1952]
[1746287031657,2.03258562,1836.6,1836.5,7.1952]
[1746287034159,2.03258562,1836.6,1836.5,3.4772]
[1746287035364,2.03258562,1836.6,1836.5,7.1952]
[1746287036166,2.03258562,1836.6,1836.5,3.4772]
[1746287038168,2.03258562,1836.6,1836.5,7.1952]
[1746287039068,3.12127562,1836.6,1836.5,7.1952]
[1746287039271,2.03258562,1836.6,1836.5,3.4772]
[1746287040271,2.03258562,1836.6,1836.5,7.1952]
[1746287041169,2.03258562,1836.6,1836.5,3.4772]
[1746287042169,2.03258562,1836.6,1836.5,7.1952]
[1746287044264,2.03258562,1836.6,1836.5,3.4772]
[1746287046166,0.42528562,1836.6,1836.5,7.1952]
[1746287048172,5.23048029,1836.8,1836.7,1.08863]
[1746287048370,5.65681469,1836.8,1836.7,1.08863]
[1746287048764,5.65681469,1836.8,1836.7,2.83383]
[1746287049170,5.65681469,1836.8,1836.7,6.55183]
[1746287050075,5.65656522,1836.8,1836.7,6.55183]
[1746287051372,5.65655798,1836.8,1836.7,2.83383]
[1746287051573,2.84037769,1836.8,1836.7,2.83383]
[1746287052473,2.84037769,1836.8,1836.7,1.08863]
[1746287053567,2.84024379,1836.8,1836.7,1.08863]
[1746287053874,2.84024388,1836.8,1836.7,1.08863]
[1746287054070,2.4143,1836.8,1836.7,1.08863]
[1746287054275,2.84024379,1836.8,1836.7,1.08863]
[1746287054673,2.84023271,1836.8,1836.7,1.08863]
[1746287055174,3.92880271,1836.8,1836.7,1.08863]
[1746287055568,3.50287,1836.8,1836.7,1.08863]
[1746287056177,3.92874941,1836.8,1836.7,1.08863]
[1746287056677,2.84017941,1836.8,1836.7,1.08863]
[1746287057175,2.84016714,1836.8,1836.7,1.08863]
[1746287057772,2.4143,1836.8,1836.7,1.08863]
[1746287057977,2.84015596,1836.8,1836.7,1.08863]
[1746287058177,1.08869,1836.6,1836.5,4.2965]
[1746287058376,0.42586946,1836.6,1836.5,4.29655]
[1746287058676,2.76327,1836.7,1836.5,1.08875]
[1746287058878,2.10048311,1836.6,1836.5,1.08875]
[1746287062279,2.10048311,1836.6,1836.5,4.80675]
[1746287063073,2.10048311,1836.6,1836.5,1.08875]
[1746287064877,3.18917311,1836.6,1836.5,1.08875]
[1746287065670,2.10048311,1836.6,1836.5,1.08875]
[1746287066281,2.92438311,1836.6,1836.5,1.08875]
[1746287070182,2.92438311,1836.6,1836.5,4.80675]
[1746287071282,2.92438311,1836.6,1836.5,1.08875]
[1746287076386,4.01307311,1836.6,1836.5,1.08875]
[1746287077182,2.92438311,1836.6,1836.5,1.08875]
[1746287077382,4.01307311,1836.6,1836.5,1.08875]
[1746287077582,7.22087311,1836.6,1836.5,1.08875]
[1746287078387,4.01307311,1836.6,1836.5,1.08875]
[1746287078590,7.22087311,1836.6,1836.5,1.08875]
[1746287081691,4.01307311,1836.6,1836.5,1.08875]
[1746287083285,2.92438311,1836.6,1836.5,1.08875]
[1746287084491,4.01307311,1836.6,1836.5,1.08875]
[1746287091191,7.73107311,1836.6,1836.5,1.08875]
[1746287091803,4.14388311,1836.6,1836.5,1.08875]
[1746287092189,0.42588311,1836.6,1836.5,7.37875]
[1746287094100,2.13728311,1836.6,1836.5,7.37875]
[1746287094298,2.13728311,1836.6,1836.5,3.66075]
[1746287095398,2.13728311,1836.6,1836.5,1.91875]
[1746287097001,3.01118311,1836.6,1836.5,1.91875]
[1746287097404,0.42588311,1836.6,1836.5,6.91875]
[1746287097599,0.42588311,1836.6,1836.5,3.57105]
[1746287100306,2.04638311,1836.6,1836.5,3.57105]
[1746287103207,2.04638311,1836.6,1836.5,7.28905]
[1746287104310,2.04638311,1836.6,1836.5,3.57105]
[1746287105111,2.04638311,1836.6,1836.5,7.28905]
[1746287110117,2.04638311,1836.6,1836.5,3.57105]
[1746287111010,2.04638311,1836.6,1836.5,6.99105]
[1746287111316,2.04638311,1836.6,1836.5,8.22675]
[1746287111517,2.91878311,1836.6,1836.5,8.22675]
[1746287111917,4.00747311,1836.6,1836.5,8.22675]
[1746287112111,4.00747311,1836.6,1836.5,4.50875]
[1746287112618,2.91878311,1836.6,1836.5,4.50875]
[1746287112806,4.00747311,1836.6,1836.5,4.50875]
[1746287117420,7.6446534,1836.6,1836.5,4.50875]
[1746287120823,4.00747311,1836.6,1836.5,4.50875]
[1746287123119,7.72547311,1836.6,1836.5,4.50875]
[1746287124422,11.3626534,1836.6,1836.5,4.50875]
[1746287126717,11.3626534,1836.6,1836.5,1.08875]
[1746287129124,7.6446534,1836.6,1836.5,1.08875]
[1746287129922,7.6446534,1836.6,1836.4,1.08876]
[1746287130125,2.05198311,1836.5,1836.4,1.08876]
[1746287131523,2.86098311,1836.5,1836.4,1.08876]
[1746287131924,3.94973311,1836.5,1836.4,1.08876]
[1746287132820,2.86098311,1836.5,1836.4,1.08876]
[1746287139029,3.94973311,1836.5,1836.4,1.08876]
[1746287139525,2.86098311,1836.5,1836.4,1.08876]
[1746287141134,6.57898311,1836.5,1836.4,1.08876]
[1746287141427,5.76998311,1836.5,1836.4,1.93006]
[1746287141635,5.76998311,1836.5,1836.4,3.59016]
[1746287142134,2.05198311,1836.5,1836.4,3.59016]
[1746287156035,3.14073311,1836.5,1836.4,3.59016]
[1746287156244,3.14073311,1836.5,1836.4,7.30816]
[1746287156542,2.05198311,1836.5,1836.4,7.30816]
[1746287157239,2.05198311,1836.5,1836.4,3.59016]
[1746287171755,2.05198311,1836.5,1836.4,1.08876]
[1746287175552,3.14073311,1836.5,1836.4,1.08876]
[1746287175747,3.92933311,1836.5,1836.4,1.08876]
[1746287177656,1.08881,1836.4,1836.3,10.67384741]
[1746287177856,3.94199311,1836.4,1836.3,10.67384741]
[1746287179249,7.65999311,1836.4,1836.3,10.67384741]
[1746287179654,7.65999311,1836.4,1836.3,4.50787]
[1746287180258,3.94199311,1836.4,1836.3,4.50787]
[1746287183561,3.94199311,1836.4,1836.3,3.419]
[1746287184664,1.08887,1836.3,1836.2,4.29668]
[1746287184860,2.79677,1836.3,1836.2,4.29668]
[1746287185162,3.22265311,1836.3,1836.2,8.01468]
[1746287186352,3.22265311,1836.3,1836.2,4.29668]
[1746287189465,3.22265311,1836.3,1836.2,1.08888]
[1746287191668,2.13378311,1836.3,1836.2,1.08888]
[1746287194072,2.13378311,1836.3,1836.2,2.83068]
[1746287196875,3.22265311,1836.3,1836.2,2.83068]
[1746287197177,2.13378311,1836.3,1836.2,2.83068]
[1746287198176,2.13378311,1836.3,1836.2,6.54868]
[1746287200173,2.13378311,1836.3,1836.2,2.83068]
[1746287205197,2.13378311,1836.3,1836.2,1.08888]
[1746287210099,3.22265311,1836.3,1836.2,1.08888]
[1746287210304,3.22265311,1836.3,1836.2,4.80688]
[1746287211103,3.22265311,1836.3,1836.2,1.08888]
[1746287211301,2.13378311,1836.3,1836.2,1.08888]
[1746287218902,1.08893,1836.2,1836.1,42.74155]
[1746287219103,2.4824,1836.2,1836.1,1.94155]
[1746287219309,2.4824,1836.2,1836.1,1.08895]
[1746287219606,2.90828311,1836.2,1836.1,1.08895]
[1746287219807,2.90828311,1836.2,1836.1,2.71985]
[1746287220406,2.90828982,1836.2,1836.1,2.71985]
[1746287221808,2.11888982,1836.2,1836.1,2.71985]
[1746287222010,2.11888982,1836.2,1836.1,4.34695]
[1746287225313,2.11888982,1836.2,1836.1,7.55475]
[1746287225614,0.42588982,1836.2,1836.1,7.55475]
[1746287227316,2.04358982,1836.2,1836.1,7.55475]
[1746287230916,2.04358982,1836.2,1836.1,14.80959741]
[1746287232221,2.04358982,1836.2,1836.1,10.46264741]
[1746287232422,2.04358982,1836.2,1836.1,11.55163741]
[1746287232822,2.04341428,1836.2,1836.1,11.55163741]
[1746287235328,2.04341428,1836.2,1836.1,4.29679]
[1746287236825,3.13234428,1836.2,1836.1,4.29679]
[1746287237723,2.04341428,1836.2,1836.1,4.29679]
[1746287238128,3.13234428,1836.2,1836.1,4.29679]
[1746287239529,3.13234428,1836.2,1836.1,1.08899]
[1746287241123,2.04341428,1836.2,1836.1,1.08899]
[1746287241724,2.04341428,1836.2,1836.1,3.58349]
[1746287245530,3.13234428,1836.2,1836.1,3.58349]
[1746287250420,3.13191769,1836.2,1836.1,3.58349]
[1746287251528,2.04298769,1836.2,1836.1,3.58349]
[1746287259739,3.13191769,1836.2,1836.1,3.58349]
[1746287260637,2.04298769,1836.2,1836.1,3.58349]
[1746287268039,3.13191769,1836.2,1836.1,3.58349]
[1746287269245,3.13191769,1836.2,1836.1,1.08899]
[1746287270941,2.04298769,1836.2,1836.1,1.08899]
[1746287271544,5.25078769,1836.2,1835.9,7.25484741]
[1746287271839,3.331,1836.1,1835.9,7.25484741]
[1746287272039,2.04058769,1836.0,1835.9,7.25484741]
[1746287272240,2.04058769,1836.0,1835.9,10.97284741]
[1746287272742,2.04058769,1836.0,1835.9,12.06195741]
[1746287272942,2.04058769,1836.0,1835.9,15.41865741]
[1746287275644,2.04058769,1836.0,1835.9,8.16381]
[1746287279046,0.42528769,1836.0,1835.9,8.16381]
[1746287279946,0.42528769,1836.0,1835.9,11.58081]
[1746287281442,0.42528769,1836.0,1835.9,14.78861]
[1746287283751,0.42528769,1836.0,1835.9,22.04345741]
[1746287287958,0.42528769,1836.0,1835.9,14.78861]
[1746287289155,0.42528769,1836.0,1835.9,12.23811]
[1746287289355,2.10008769,1836.0,1835.9,12.23811]
[1746287289554,3.79698769,1836.0,1835.9,12.23811]
[1746287294458,2.94188769,1836.0,1835.9,12.23811]
[1746287294757,2.12218769,1836.0,1835.9,12.23811]
[1746287294959,2.12218769,1836.0,1835.9,13.04591]
[1746287296856,2.12218769,1836.0,1835.9,12.23811]
[1746287298260,2.12218769,1836.0,1835.9,9.03031]
[1746287301262,3.21123769,1836.0,1835.9,3.718]
[1746287302164,1.08911,1835.9,1835.8,1.08916]
[1746287302365,3.52971,1835.9,1835.8,1.08916]
[1746287302663,3.95499769,1835.9,1835.8,1.08916]
[1746287304459,6.07368769,1835.9,1835.5,22.16838885]
[1746287304659,3.57359,1835.8,1835.7,1.08919]
[1746287304862,3.99887769,1835.8,1835.7,1.08919]
[1746287305067,2.90968769,1835.8,1835.7,1.08919]
[1746287306268,2.90968769,1835.8,1835.7,4.80719]
[1746287306569,3.99885769,1835.8,1835.7,4.80719]
[1746287312369,3.99885769,1835.8,1835.7,1.08919]
[1746287313167,3.99885769,1835.8,1835.7,4.80719]
[1746287317368,3.99885769,1835.8,1835.7,3.718]
[1746287317873,3.99885769,1835.8,1835.7,4.80723]
[1746287318173,3.99885769,1835.8,1835.7,1.08923]
[1746287320477,3.99819308,1835.8,1835.7,1.08923]
[1746287323274,3.99819308,1835.8,1835.5,6.4968]
[1746287323275,2.90902308,1835.8,1835.5,6.4968]
[1746287323473,3.53995,1835.7,1835.6,1.08924]
[1746287323774,3.53994,1835.7,1835.6,1.08928]
[1746287323977,3.96456308,1835.7,1835.6,1.08928]
[1746287324378,2.87532308,1835.7,1835.6,1.08928]
[1746287327576,3.96455308,1835.7,1835.6,1.08928]
[1746287331583,2.87532308,1835.7,1835.6,1.08928]
[1746287333683,3.96455308,1835.7,1835.6,1.08928]
[1746287333878,2.87532308,1835.7,1835.6,1.08928]
[1746287337984,3.96455308,1835.7,1835.6,1.08928]
[1746287338579,2.87532308,1835.7,1835.6,1.08928]
[1746287340184,3.96455308,1835.7,1835.6,1.08928]
[1746287340585,2.87532308,1835.7,1835.6,1.08928]
[1746287343088,2.08222308,1835.7,1835.6,1.08928]
[1746287343276,0.42462308,1835.7,1835.6,2.75588]
[1746287357696,0.42462308,1835.7,1835.6,6.17188]
[1746287358496,1.22472308,1835.7,1835.6,6.17188]
[1746287358994,0.42462308,1835.7,1835.6,6.17188]
[1746287360790,0.42462308,1835.7,1835.6,11.17188]
[1746287361694,0.42462308,1835.7,1835.6,6.17188]
[1746287363598,3.00222308,1835.7,1835.6,6.17188]
[1746287367892,2.13912308,1835.7,1835.6,6.17188]
[1746287373504,2.13912308,1835.7,1835.6,4.50528]
[1746287376206,2.13912308,1835.7,1835.6,6.96748]
[1746287380015,2.13912308,1835.7,1835.6,10.17528]
[1746287381822,2.13912308,1835.7,1835.6,10.99878]
[1746287383521,2.13912308,1835.7,1835.6,7.79098]
[1746287383723,2.94162308,1835.7,1835.6,7.79098]
[1746287383921,2.94162308,1835.7,1835.6,5.32878]
[1746287384222,2.94162308,1835.7,1835.6,4.50528]
[1746287384923,2.13912308,1835.7,1835.6,4.50528]
[1746287385123,2.13912308,1835.7,1835.6,6.88208]
[1746287386919,2.13912308,1835.7,1835.6,7.67578]
[1746287388930,2.13963594,1835.7,1835.6,7.67578]
[1746287393530,0.42513594,1835.7,1835.6,7.67578]
[1746287394932,0.42513594,1835.7,1835.6,14.93062741]
[1746287398338,0.42513594,1835.7,1835.6,22.47321086]
[1746287399740,1.7093,1835.8,1835.7,1.08923]
[1746287399926,1.7093,1835.8,1835.7,4.29703]
[1746287400130,2.134679,1835.8,1835.7,8.01503]
[1746287400938,2.134679,1835.8,1835.7,9.60673]
[1746287404940,2.134679,1835.8,1835.7,8.01503]
[1746287412839,2.134679,1835.8,1835.7,4.80723]
[1746287414036,2.134679,1835.8,1835.7,8.01503]
[1746287414638,2.134679,1835.8,1835.7,4.80723]
[1746287414843,2.134679,1835.8,1835.7,8.01503]
[1746287419745,2.134679,1835.8,1835.7,4.80723]
[1746287428652,3.223849,1835.8,1835.7,4.80723]
[1746287428849,2.134679,1835.8,1835.7,4.80723]
[1746287429248,2.134679,1835.8,1835.7,1.08923]
[1746287430255,2.134679,1835.8,1835.7,4.80723]
[1746287444461,2.134679,1835.8,1835.7,8.22223]
[1746287454080,2.134679,1835.8,1835.6,5.16524]
[1746287454380,2.889479,1835.7,1835.6,5.37248]
[1746287457780,2.094879,1835.7,1835.6,5.37248]
[1746287457981,2.094879,1835.7,1835.6,10.30298]
[1746287459682,2.885479,1835.7,1835.6,10.30298]
[1746287460083,2.885479,1835.7,1835.6,7.09518]
[1746287460787,2.885479,1835.7,1835.6,5.37248]
[1746287465383,2.885479,1835.7,1835.6,1.08928]
[1746287466791,2.094879,1835.7,1835.6,1.08928]
[1746287466998,0.425379,1835.7,1835.6,3.55908]
[1746287474495,0.425379,1835.7,1835.6,6.76688]
[1746287474695,0.425379,1835.7,1835.6,10.18188]
[1746287475098,0.425379,1835.7,1835.6,6.97408]
[1746287475294,0.425379,1835.7,1835.6,10.18188]
[1746287483599,0.425379,1835.7,1835.6,17.43672741]
[1746287487506,0.425379,1835.7,1835.6,24.98131279]
[1746287491407,0.425379,1835.7,1835.6,17.43672741]
[1746287501416,9e-06,1835.7,1835.6,17.43672741]
[1746287502315,1.6705,1835.9,1835.8,1.08917]
[1746287502517,1.6705,1835.9,1835.8,4.29697]
[1746287503110,1.6705,1835.9,1835.8,8.01497]
[1746287503317,1.6705,1835.9,1835.8,8.86347]
[1746287504115,1.6705,1835.9,1835.8,5.65567]
[1746287504315,1.6705,1835.9,1835.8,8.86347]
[1746287513021,1.6705,1835.9,1835.8,10.53027]
[1746287517528,1.6705,1835.9,1835.8,8.86347]
[1746287518727,1.6705,1835.9,1835.8,8.01497]
[1746287522733,1.6705,1835.9,1835.8,11.42897]
[1746287528437,1.6705,1835.9,1835.8,8.22117]
[1746287529236,1.6705,1835.9,1835.8,9.89657]
[1746287530238,2.09546708,1835.9,1835.8,9.89657]
[1746287531534,2.09546708,1835.9,1835.8,8.22117]
[1746287536037,2.09546708,1835.9,1835.8,7.132]
[1746287536241,8.18457708,1835.9,1835.8,7.132]
[1746287537240,1.08917,1835.8,1835.7,11.57567235]
[1746287537446,4.02963708,1835.8,1835.7,7.27867235]
[1746287537743,9.02963708,1835.8,1835.7,8.36790235]
[1746287538146,7.74763708,1835.8,1835.7,8.36790235]
[1746287539138,4.02963708,1835.8,1835.7,8.36790235]
[1746287540247,9.02963708,1835.8,1835.7,7.27867235]
[1746287540650,9.02963708,1835.8,1835.6,1.08928]
[1746287540651,1.08927,1835.7,1835.6,1.08928]
[1746287540846,4.04083708,1835.7,1835.6,1.08928]
[1746287541052,1.0893,1835.6,1835.5,1.08931]
[1746287541251,4.07216708,1835.6,1835.5,1.08931]
[1746287542151,1.08934,1835.5,1835.4,8.36807235]
[1746287542342,2.79534,1835.5,1835.4,8.36807235]
[1746287542544,3.22030708,1835.5,1835.4,8.36807235]
[1746287543147,3.22030708,1835.5,1835.4,10.99667235]
[1746287543451,1.0894,1835.4,1835.3,9.31131379]
[1746287543751,4.52064133,1835.4,1835.3,9.31131379]
[1746287543955,9.52059261,1835.4,1835.3,9.31131379]
[1746287544248,9.52050301,1835.4,1835.3,13.02931379]
[1746287544442,9.52048655,1835.4,1835.3,13.02931379]
[1746287545251,15.33983116,1835.4,1835.3,13.02931379]
[1746287545854,15.33983116,1835.4,1835.3,3.718]
[1746287546255,1.08967,1835.0,1834.8,3.2078]
[1746287546455,2.07175308,1834.9,1834.8,4.29756]
[1746287546752,3.77945308,1834.9,1834.8,4.29756]
[1746287547155,3.77945308,1834.9,1834.8,8.01556]
[1746287547656,4.86915308,1834.9,1834.8,8.01556]
[1746287547858,3.77945308,1834.9,1834.8,8.01556]
[1746287548155,2.94945308,1834.9,1834.8,8.01556]
[1746287548454,2.94945308,1834.9,1834.8,9.64326]
[1746287550157,0.42355308,1834.9,1834.8,9.64326]
[1746287550459,0.42355308,1834.9,1834.8,10.50746]
[1746287550856,0.42355308,1834.9,1834.8,9.64326]
[1746287551052,2.14705308,1834.9,1834.8,9.64326]
[1746287551257,3.23675308,1834.9,1834.8,3.718]
[1746287561166,3.23675308,1834.9,1834.8,5.4384]
[1746287563069,3.23675308,1834.9,1834.8,3.718]
[1746287563763,9.05675308,1834.9,1834.8,3.718]
[1746287565572,9.47597672,1834.9,1834.8,3.718]
[1746287565766,9.47597671,1834.9,1834.8,3.718]
[1746287566775,9.4762041,1834.9,1834.8,3.718]
[1746287567574,9.4762192,1834.9,1834.8,3.718]
[1746287569180,9.4762192,1834.9,1834.8,5.3782]
[1746287571177,9.47712671,1834.9,1834.8,5.3782]
[1746287571574,9.47712671,1834.9,1834.8,3.718]
[1746287572978,9.47763728,1834.9,1834.8,3.718]
[1746287573774,9.47763728,1834.9,1834.8,6.9916]
[1746287574877,9.47791323,1834.9,1834.8,6.9916]
[1746287580182,9.47833972,1834.9,1834.8,6.9916]
[1746287581382,9.47849074,1834.9,1834.8,6.9916]
[1746287583077,9.47854757,1834.9,1834.8,6.9916]
[1746287583981,10.32824757,1834.9,1834.8,6.9916]
[1746287584879,10.32835994,1834.9,1834.8,3.718]
[1746287586884,10.32970577,1834.9,1834.8,3.718]
[1746287591187,16.48687732,1834.9,1834.8,3.718]
[1746287592779,19.69467732,1834.9,1834.8,3.718]
[1746287597791,14.23240753,1834.9,1834.8,3.718]
[1746287598280,19.23240753,1834.9,1834.8,3.718]
[1746287598892,14.23240753,1834.9,1834.8,3.718]
[1746287599391,1.08988,1834.6,1834.5,1.6469]
[1746287599592,1.51169881,1834.6,1834.5,3.3949]
[1746287599793,1.93659772,1834.6,1834.5,3.3949]
[1746287600283,1.93659772,1834.6,1834.5,7.1129]
[1746287601394,3.60329772,1834.6,1834.5,7.1129]
[1746287603587,7.92794971,1834.6,1834.5,3.718]
[1746287604491,7.5061309,1834.6,1834.5,3.718]
[1746287604795,13.74757292,1834.6,1834.5,3.718]
[1746287605191,18.74757292,1834.6,1834.5,3.718]
[1746287605392,18.74757292,1834.6,1834.5,2.46303]
[1746287605693,13.74757292,1834.6,1834.5,2.46303]
[1746287606291,13.74682402,1834.6,1834.5,2.46303]
[1746287606492,13.74679255,1834.6,1834.5,2.46303]
[1746287608100,15.56151978,1834.6,1834.5,2.46303]
[1746287608701,15.14041073,1834.6,1834.5,2.46303]
[1746287608894,15.56147534,1834.6,1834.5,2.46303]
[1746287609203,1.08994,1834.5,1834.4,0.87]
[1746287609501,6.85710823,1834.5,1834.4,0.87]
[1746287610101,6.85710823,1834.5,1834.4,4.588]
[1746287611601,10.48082584,1834.5,1834.4,4.588]
[1746287611798,10.47335584,1834.5,1834.4,4.588]
[1746287613404,10.47334628,1834.5,1834.4,4.588]
[1746287614596,10.47334628,1834.5,1834.4,6.2531]
[1746287615104,10.47334628,1834.5,1834.4,2.5351]
[1746287615304,10.47332921,1834.5,1834.4,2.5351]
[1746287616304,10.47332921,1834.5,1834.4,6.2531]
[1746287616903,10.47333028,1834.5,1834.4,6.2531]
[1746287617108,10.47332959,1834.5,1834.4,6.2531]
[1746287617309,10.47332959,1834.5,1834.4,2.5351]
[1746287618208,10.47332959,1834.5,1834.4,6.2531]
[1746287618907,10.47336187,1834.5,1834.4,6.2531]
[1746287619210,10.47336187,1834.5,1834.4,2.5351]
[1746287621111,11.31486187,1834.5,1834.4,2.5351]
[1746287622313,8.75936187,1834.5,1834.4,2.5351]
[1746287622814,10.37766187,1834.5,1834.4,2.5351]
[1746287624011,6.75384775,1834.5,1834.4,2.5351]
[1746287624413,6.75357313,1834.5,1834.4,2.5351]
[1746287626213,7.55617313,1834.5,1834.4,6.2531]
[1746287627119,7.55617313,1834.5,1834.4,2.5351]
[1746287627815,11.17998725,1834.5,1834.4,2.5351]
[1746287628008,11.18024741,1834.5,1834.4,2.5351]
[1746287631232,7.97244741,1834.5,1834.4,2.5351]
[1746287631531,7.97272106,1834.5,1834.4,2.5351]
[1746287632331,7.97272106,1834.5,1834.4,6.2531]
[1746287633133,7.97272106,1834.5,1834.4,2.5351]
[1746287633434,7.9729641,1834.5,1834.4,2.5351]
[1746287634232,7.9729641,1834.5,1834.4,6.2531]
[1746287635035,7.97335494,1834.5,1834.4,6.2531]
[1746287635235,7.97335494,1834.5,1834.4,2.5351]
[1746287635736,7.97335494,1834.5,1834.4,0.87]
[1746287636834,7.97336045,1834.5,1834.4,0.87]
[1746287638138,7.97336045,1834.5,1834.4,4.588]
[1746287638640,7.97334717,1834.5,1834.4,4.588]
[1746287640239,7.97334717,1834.5,1834.4,6.2864]
[1746287642639,7.97352141,1834.5,1834.4,6.2864]
[1746287642840,8.66852964,1834.5,1834.4,6.2864]
[1746287645243,8.66851832,1834.5,1834.4,6.2864]
[1746287645644,8.66851887,1834.5,1834.4,6.2864]
[1746287647045,8.66926039,1834.5,1834.4,6.2864]
[1746287647747,10.49007162,1834.5,1834.4,4.588]
[1746287649748,9.68747162,1834.5,1834.4,5.678]
[1746287649947,9.68747162,1834.5,1834.4,7.2752]
[1746287650645,9.68721582,1834.5,1834.4,7.2752]
[1746287650947,4.24259047,1834.5,1834.4,3.718]
[1746287651147,5.08559047,1834.5,1834.4,3.718]
[1746287651445,2.62429047,1834.5,1834.4,3.718]
[1746287651946,4.25609047,1834.5,1834.4,6.1805]
[1746287652449,4.25598475,1834.5,1834.4,6.9726]
[1746287654143,3.83419286,1834.5,1834.4,6.9726]
[1746287654347,4.25590733,1834.5,1834.4,6.9726]
[1746287654549,4.25590733,1834.5,1834.4,4.5101]
[1746287654849,5.06560733,1834.5,1834.4,4.5101]
[1746287655948,2.62419558,1834.5,1834.4,5.6001]
[1746287656149,2.62419558,1834.5,1834.4,6.1761]
[1746287656943,1.54172558,1834.5,1834.4,7.2661]
[1746287657243,2.63166558,1834.5,1834.4,7.2661]
[1746287657444,2.63166558,1834.5,1834.4,6.1761]
[1746287657851,2.63158959,1834.5,1834.4,6.1761]
[1746287659248,4.22678959,1834.5,1834.4,6.1761]
[1746287659945,7.16205938,1834.5,1834.4,6.1761]
[1746287660551,7.16205938,1834.5,1834.4,7.2661]
[1746287660853,7.16205938,1834.5,1834.4,6.1761]
[1746287663249,7.16179411,1834.5,1834.4,6.1761]
[1746287664952,7.16170495,1834.5,1834.4,6.1761]
[1746287666053,7.16170495,1834.5,1834.4,7.2661]
[1746287666753,7.85669998,1834.5,1834.4,7.2661]
[1746287667050,7.85667082,1834.5,1834.4,7.2661]
[1746287667249,7.85667082,1834.5,1834.4,3.718]
[1746287667648,8.67207082,1834.5,1834.4,3.718]
[1746287668756,8.67203098,1834.5,1834.4,3.718]
[1746287669657,10.48716999,1834.5,1834.4,3.718]
[1746287670256,1.09,1834.4,1834.2,6.25566]
[1746287670557,0.42160208,1834.3,1834.2,6.25566]
[1746287670959,2.55685144,1834.3,1834.2,6.25566]
[1746287671156,2.55685144,1834.3,1834.2,9.97366]
[1746287671957,3.64691144,1834.3,1834.2,9.97366]
[1746287672364,3.646774,1834.3,1834.2,9.97366]
[1746287674059,3.6467728,1834.3,1834.2,6.25566]
[1746287675062,3.6467728,1834.3,1834.2,9.97366]
[1746287675757,3.22530936,1834.3,1834.2,9.97366]
[1746287675963,3.64672552,1834.3,1834.2,9.97366]
[1746287676963,3.64664754,1834.3,1834.2,9.97366]
[1746287678565,2.55658754,1834.3,1834.2,9.97366]
[1746287679069,2.55658754,1834.3,1834.2,6.25566]
[1746287679466,2.13524936,1834.3,1834.2,6.25566]
[1746287679666,2.55643038,1834.3,1834.2,6.25566]
[1746287680061,2.55643038,1834.3,1834.2,9.97366]
[1746287681270,2.55642489,1834.3,1834.2,9.97366]
[1746287681471,3.64648489,1834.3,1834.2,9.97366]
[1746287682068,3.64648489,1834.3,1834.2,6.25566]
[1746287682967,3.64648489,1834.3,1834.2,2.83666]
[1746287683168,3.64656082,1834.3,1834.2,6.55466]
[1746287683369,2.55650082,1834.3,1834.2,6.55466]
[1746287685569,3.64656082,1834.3,1834.2,6.55466]
[1746287686770,3.64653508,1834.3,1834.2,6.55466]
[1746287687165,3.64653508,1834.3,1834.2,2.83666]
[1746287687674,3.64653508,1834.3,1834.2,1.09006]
[1746287688061,3.64653508,1834.3,1834.2,4.80806]
[1746287688466,3.22530936,1834.3,1834.2,4.80806]
[1746287688669,3.64653713,1834.3,1834.2,4.80806]
[1746287690275,3.64653713,1834.3,1834.2,3.718]
[1746287690574,3.64653713,1834.3,1834.2,4.80812]
[1746287693877,3.64661082,1834.3,1834.2,4.80812]
[1746287694478,7.27449334,1834.3,1834.2,4.80812]
[1746287695077,7.27449334,1834.3,1834.2,2.68322]
[1746287695774,7.27454374,1834.3,1834.2,2.68322]
[1746287696178,7.27454374,1834.3,1834.2,6.40122]
[1746287697479,7.27459458,1834.3,1834.2,6.40122]
[1746287699275,6.85319188,1834.3,1834.2,6.40122]
[1746287699479,7.27463606,1834.3,1834.2,6.40122]
[1746287700882,7.27464109,1834.3,1834.2,6.40122]
[1746287701083,6.18458109,1834.3,1834.2,2.68322]
[1746287701282,4.47398109,1834.3,1834.2,7.68322]
[1746287701482,4.05253188,1834.3,1834.2,7.68322]
[1746287702182,4.05253188,1834.3,1834.2,11.40122]
[1746287705882,0.42464936,1834.3,1834.2,18.69181193]
[1746287707087,0.42464936,1834.3,1834.2,13.69181193]
[1746287708995,0.42464936,1834.3,1834.2,6.40122]
[1746287715297,0.42464936,1834.3,1834.2,9.60902]
[1746287717700,1.25784936,1834.3,1834.2,9.60902]
[1746287718001,1.25784936,1834.3,1834.2,8.01592]
[1746287718202,2.99464936,1834.3,1834.2,8.01592]
[1746287719389,2.16144936,1834.3,1834.2,9.67902]
[1746287722105,2.16144936,1834.3,1834.2,6.47122]
[1746287722601,2.16144936,1834.3,1834.2,9.67902]
[1746287723705,0.42464936,1834.3,1834.2,9.67902]
[1746287724602,2.17434936,1834.3,1834.2,9.67902]
[1746287726005,2.17434936,1834.3,1834.2,8.01592]